fUSD/lending_fUSD_20250612
["ID","MTS","AMOUNT","RATE_DAILY","PERIOD"]
[365510411,1749724241302,-151.0,0.000198,2]
[365510412,1749724241312,-151.0,0.000198,2]
[365510413,1749724241321,-564.935841,0.000198,2]
[365510414,1749724241330,-564.935841,0.000198,2]
[365510415,1749724241340,-564.935841,0.000198,2]
[365510416,1749724241350,-564.935841,0.000198,2]
[365510417,1749724241361,-1217.089157,0.000198,2]
[365510418,1749724241371,-1217.089157,0.000198,2]
[365510419,1749724241380,-1217.089157,0.000198,2]
[365510420,1749724241390,-1217.089157,0.000198,2]
[365510421,1749724241400,-151.0,0.000198,2]
[365510422,1749724241410,-151.0,0.000198,2]
[365510423,1749724241419,-151.0,0.000198,2]
[365510424,1749724241428,-152.727629,0.000198,2]
[365510425,1749724241438,-1076.279501,0.000198,2]
[365510426,1749724241449,-1076.279501,0.000198,2]
[365510427,1749724241459,-1076.279501,0.000198,2]
[365510428,1749724241468,-1076.279501,0.000198,2]
[365510429,1749724241478,-151.0,0.000198,2]
[365510430,1749724241487,-151.0,0.000198,2]
[365510431,1749724241497,-151.0,0.000198,2]
[365510432,1749724241507,-151.0,0.000198,2]
[365510433,1749724241516,-364.941778,0.000198,2]
[365510434,1749724241526,-364.941778,0.000198,2]
[365510435,1749724241535,-364.941778,0.000198,2]
[365510436,1749724241544,-364.941778,0.000198,2]
[365510437,1749724241553,-364.941778,0.000198,2]
[365510438,1749724241563,-364.941778,0.000198,2]
[365510439,1749724241573,-151.0,0.000198,2]
[365510440,1749724241582,-151.0,0.000198,2]
[365510441,1749724241591,-151.0,0.000198,2]
[365510442,1749724241601,-210.245125,0.000198,2]
[365510443,1749724241611,-210.245125,0.000198,2]
[365510444,1749724241620,-210.245125,0.000198,2]
[365510445,1749724241630,-210.245125,0.000198,2]
[365510446,1749724241640,-151.0,0.000198,2]
[365510447,1749724241650,-151.0,0.000198,2]
[365510448,1749724241660,-151.0,0.000198,2]
[365510449,1749724241670,-151.0,0.000198,2]
[365510450,1749724241680,-266.169621,0.000198,2]
[365510451,1749724241690,-227.0,0.00019809,2]
[365510452,1749724241701,-231.11061368,0.00019811,2]
[365510453,1749724241711,-2240.83937554,0.00019811,2]
[365510454,1749724241721,-231.11061368,0.00019833,2]
[365510455,1749724241730,-2240.83937554,0.00019833,2]
[365510456,1749724241739,-928.58,0.00019834,2]
[365510457,1749724241749,-1010.59,0.00019834,2]
[365510458,1749724241759,-718.258,0.00019844,2]
[365510459,1749724241769,-231.11061368,0.00019856,2]
[365510460,1749724241778,-2240.83937554,0.00019856,2]
[365510461,1749724241788,-845.75,0.00019861,2]
[365510462,1749724241797,-461.37,0.00019861,2]
[365510463,1749724241807,-461.37,0.00019861,2]
[365510464,1749724241816,-461.37,0.00019861,2]
[365510465,1749724241826,-922.74,0.00019861,2]
[365510466,1749724241836,-172.11,0.00019861,2]
[365510467,1749724241846,-152.83,0.0001987,2]
[365510468,1749724241856,-154.61946531,0.0001987,2]
[365510469,1749724241866,-500.0,0.00019873,2]
[365510470,1749724241875,-500.0,0.00019873,2]
[365510471,1749724241885,-500.0,0.00019873,2]
[365510472,1749724241895,-500.0,0.00019873,2]
[365510473,1749724241904,-179.5608978,0.00019873,2]
[365510474,1749724241914,-231.11061368,0.00019878,2]
[365510475,1749724241924,-2240.83937554,0.00019878,2]
[365510476,1749724241938,-151.0,0.00019878,2]
[365510477,1749724241949,-555099.86603206,0.0001988,2]
[365510478,1749724241959,-317703.16689008,0.00019888,2]
[365510479,1749724241975,-859.12606939,0.00019888,2]
[365510480,1749724242004,-485.77138159,0.00019888,2]
[365510481,1749724242015,-8583.34824603,0.00019888,2]
[365510482,1749724242197,-2257.5616925,0.00019888,2]
[365510498,1749724243439,-334.90743621,0.00019888,2]
[365510499,1749724243479,-1162.55644556,0.00019888,2]
[365510500,1749724243491,-10737.0,0.00019888,2]
[365510501,1749724243678,-641.12545339,0.00019888,2]
[365510502,1749724243690,-21885.31728241,0.00019888,2]
[365510508,1749724245557,-150.0,0.00018978,2]
[365510509,1749724245566,-302.56922481,0.00019793,2]
[365510510,1749724245575,-293.9707828,0.00019861,2]
[365510511,1749724245586,-167.3992172,0.00019861,2]
[365510512,1749724245594,-835.41148281,0.00019888,2]
[365510513,1749724245665,-1072.5,0.00019888,2]
[365510514,1749724245676,-684.64800033,0.00019888,2]
[365510515,1749724245687,-1076.70404442,0.00019888,2]
[365510529,1749724266368,2122.0,0.00024658,120]
[365510532,1749724315403,186.01,0.00013699,2]
[365510533,1749724415925,543.21,0.000169,2]
[365510534,1749724561965,1379.89274266,0.00017,2]
[365510535,1749724561988,15084.39433333,0.00017,2]
[365510536,1749724562011,15084.39433333,0.00017,2]
[365510537,1749724562041,15084.39433333,0.00017,2]
[365510538,1749724562064,15084.39433333,0.00017,2]
[365510539,1749724562088,15084.39433333,0.00017,2]
[365510540,1749724562112,15084.39433333,0.00017,2]
[365510541,1749724562135,15084.39433333,0.00017,2]
[365510542,1749724562158,15084.39433333,0.00017,2]
[365510543,1749724562181,15084.39433333,0.00017,2]
[365510544,1749724562208,15084.39433333,0.00017,2]
[365510545,1749724562231,15084.39433333,0.00017,2]
[365510546,1749724562254,15084.39433333,0.00017,2]
[365510547,1749724562279,15084.39433333,0.00017,2]
[365510548,1749724562301,15084.39433333,0.00017,2]
[365510549,1749724562323,15084.39433333,0.00017,2]
[365510550,1749724562346,15084.39433333,0.00017,2]
[365510551,1749724562372,1000000.0,0.00017,2]
[365510552,1749724562399,1810504.50365281,0.00017,2]
[365510553,1749724562421,2000000.0,0.00017,2]
[365510554,1749724562445,5392.38134942,0.00017,2]
[365510555,1749724562467,17639.36548387,0.00017,2]
[365510556,1749724562490,17639.36548387,0.00017,2]
[365510557,1749724562511,17639.36548387,0.00017,2]
[365510558,1749724563054,-280.49041582,0.00017,2]
[365510559,1749724567620,-187.37967098,0.00017,2]
[365510560,1749724573031,-268.29991772,0.0001666,2]
[365510561,1749724575699,-168.66342984,0.0001666,2]
[365510562,1749724577334,-137.64265244,0.0001666,2]
[365510563,1749724577356,-62.35734756,0.00017,2]
[365510564,1749724579831,-151.0,0.00017,2]
[365510565,1749724583422,-209.21957207,0.00017,2]
[365510566,1749724585605,-151.0,0.00017,2]
[365510567,1749724587734,-199.22388001,0.00017,3]
[365510568,1749724591996,-63.5362326,0.00017,3]
[365510569,1749724592019,-138.4637674,0.00017,3]
[365510570,1749724594149,-205.0,0.00017,3]
[365510571,1749724597778,-159.99181557,0.00016999,2]
[365510572,1749724599365,-289.81557007,0.00016999,2]
[365510573,1749724602027,-50.19261436,0.00016999,2]
[365510574,1749724602051,-100.80738564,0.00016999,2]
[365510575,1749724608874,-177.12607693,0.00016913,2]
[365510576,1749724623841,-262.22650481,0.00016913,2]
[365510577,1749724638799,-164.64741826,0.00016913,2]
[365510578,1749724641102,-250.0,0.00016913,2]
[365510579,1749724644726,-256.04178212,0.00016913,2]
[365510580,1749724646697,-283.00080979,0.00016913,2]
[365510581,1749724648245,-288.37076245,0.00016913,2]
[365510582,1749724650378,-243.6168107,0.00016913,2]
[365510583,1749724652347,-153.06679394,0.00016913,2]
[365510584,1749724652369,-83.33065764,0.00016999,2]
[365510585,1749724654370,-163.30127842,0.00016999,2]
[365510586,1749724661300,-152.5606783,0.00016999,2]
[365510587,1749724661324,-18.39460794,0.00016999,2]
[365510588,1749724663440,-250.16446396,0.00016999,2]
[365510589,1749724670005,-231.4409281,0.00016999,2]
[365510590,1749724670028,-66.24818014,0.00016999,2]
[365510591,1749724671670,-204.87393609,0.00016999,2]
[365510592,1749724673642,-228.87788377,0.00016999,2]
[365510593,1749724673665,-34.01211623,0.00016999,2]
[365510594,1749724675855,-250.0,0.00016999,2]
[365510595,1749724677808,-208.62809662,0.00016999,2]
[365510596,1749724679528,-7.35978715,0.00016999,2]
[365510597,1749724679552,-198.75461377,0.00016999,2]
[365510598,1749724682469,-292.77322553,0.00016999,2]
[365510599,1749724685037,-8.4721607,0.00016999,2]
[365510600,1749724685058,-143.5278393,0.00016999,2]
[365510601,1749724687954,-210.68290712,0.00016899,2]
[365510602,1749724687976,-104.33470238,0.00016999,2]
[365510603,1749724693345,-151.0,0.00016875,2]
[365510604,1749724693369,-53.00506516,0.00016973,2]
[365510605,1749724695027,-180.93385141,0.00016973,2]
[365510606,1749724698190,-200.0,0.00016973,2]
[365510607,1749724700039,-66.06108343,0.00016973,2]
[365510608,1749724700060,-101.29891657,0.00016973,2]
[365510609,1749724702753,-190.62444018,0.00016888,2]
[365510610,1749724705343,-9.37555982,0.00016888,2]
[365510611,1749724705365,-175.55145322,0.00016973,2]
[365510612,1749724708926,-198.07675857,0.00016174,2]
[365510613,1749724710137,595.39,0.0001846,120]
[365510614,1749724711608,-151.0,0.00016174,2]
[365510615,1749724715782,-150.92324143,0.00016174,2]
[365510616,1749724715804,-20.04675857,0.00016973,2]
[365510617,1749724718759,-246.85089176,0.000169,2]
[365510618,1749724724969,-301.92324143,0.000169,2]
[365510619,1749724727419,-257.08623452,0.000169,2]
[365510620,1749724733143,-499.40698237,0.000169,2]
[365510621,1749724735486,-301.47368583,0.000169,2]
[365510622,1749724738059,-417.95568379,0.000169,2]
[365510623,1749724738084,-74.17038012,0.000169,2]
[365510624,1749724740400,-161.1233,0.00016174,2]
[365510625,1749724742718,-162.02593167,0.00016174,2]
[365510626,1749724742740,-77.56746347,0.000169,2]
[365510627,1749724745265,-292.11992471,0.000169,2]
[365510628,1749724749953,-133.19914589,0.000169,2]
[365510629,1749724749976,-55.86761411,0.00016973,2]
[365510630,1749724751678,-147.23525753,0.00016973,2]
[365510631,1749724751701,-26.36115741,0.00016973,2]
[365510632,1749724760146,-161.1233,0.00016973,2]
[365510633,1749724762789,-347.12,0.00016873,2]
[365510634,1749724766203,-306.46735254,0.00016873,2]
[365510635,1749724769177,-249.14335986,0.00016873,2]
[365510636,1749724772976,-151.0,0.00016873,2]
[365510637,1749724776326,-311.09829226,0.00016873,2]
[365510638,1749724778194,-182.37190338,0.00016873,2]
[365510639,1749724780870,-222.86778764,0.00016873,2]
[365510640,1749724783493,-193.65132689,0.00016873,2]
[365510641,1749724786230,-257.73821788,0.00016873,2]
[365510642,1749724790629,-216.82149945,0.00016873,2]
[365510643,1749724870258,-184.56958982,0.000168,2]
[365510644,1749724952270,150.0,0.00016979,7]
[365510647,1749725093264,-152.0,0.00016653,2]
[365510648,1749725095224,-250.0,0.00016653,2]
[365510649,1749725098440,-300.0,0.00016653,2]
[365510650,1749725103825,-299.0,0.00016652,2]
[365510651,1749725110874,-201.0,0.00016652,2]
[365510653,1749725159172,500.0,0.00024649,120]
[365510654,1749725202181,500.0,0.00024658,120]
[365510656,1749725224732,-196.07197519,0.00016521,2]
[365510657,1749725227676,-265.95348218,0.00016521,2]
[365510658,1749725229943,-231.85590464,0.00016521,2]
[365510659,1749725230796,319.56284929,0.000245,120]
[365510660,1749725231120,-517.23529099,0.00016521,2]
[365510661,1749725231139,-658.44277028,0.00016604,2]
[365510662,1749725234584,400.0,0.000161,5]
[365510663,1749725236690,800.0,0.000162,5]
[365510664,1749725238947,1200.0,0.000163,5]
[365510665,1749725240903,1600.0,0.000164,5]
[365510666,1749725243068,2000.0,0.000165,6]
[365510667,1749725245175,400.0,0.000166,6]
[365510668,1749725247302,400.0,0.000167,6]
[365510669,1749725249736,400.0,0.000168,6]
[365510670,1749725251528,400.0,0.000169,6]
[365510672,1749725313245,-201.0,0.00016151,2]
[365510673,1749725313277,-40.26061318,0.00016221,2]
[365510674,1749725315006,-151.0,0.00016221,2]
[365510675,1749725329054,-187.37967098,0.00016221,2]
[365510676,1749725343078,-280.49041582,0.00016221,2]
[365510677,1749725359104,-745.40767246,0.00016221,2]
[365510678,1749725360071,-207.19162756,0.00016221,2]
[365510679,1749725373090,-2033.69722972,0.00016604,2]
[365510680,1749725373113,-300.0,0.00016607,2]
[365510681,1749725373136,-250.0,0.0001661,2]
[365510682,1749725373159,-201.0,0.00016643,2]
[365510683,1749725373182,-700.0,0.00016652,2]
[365510684,1749725373204,-300.0,0.00016652,2]
[365510685,1749725373226,-300.0,0.00016652,2]
[365510686,1749725373248,-300.0,0.00016652,2]
[365510687,1749725373271,-116.38769428,0.00016653,2]
[365510694,1749725431644,-152.32,0.00016644,2]
[365510695,1749725431654,-1200.0,0.00016652,2]
[365510696,1749725431664,-8631.91230572,0.00016653,2]
[365510697,1749725431674,-250.0,0.00016684,2]
[365510698,1749725431683,-150.0,0.00016716,2]
[365510699,1749725431693,-417.13184364,0.00016837,2]
[365510700,1749725431702,-417.13184361,0.00016844,2]
[365510701,1749725431711,-300.0,0.0001685,2]
[365510702,1749725431721,-417.13184361,0.00016851,2]
[365510703,1749725431730,-417.13184361,0.00016858,2]
[365510704,1749725431740,-417.13184361,0.00016865,2]
[365510705,1749725431749,-417.13184361,0.00016872,2]
[365510706,1749725431759,-151.0,0.00016873,2]
[365510707,1749725431768,-184.27521091,0.00016873,2]
[365510708,1749725431777,-417.13184361,0.00016879,2]
[365510709,1749725431787,-417.13184361,0.00016886,2]
[365510710,1749725431796,-417.13184361,0.00016893,2]
[365510711,1749725431806,-2141.93244809,0.00016898,2]
[365510712,1749725431815,-603.337,0.00016899,2]
[365510713,1749725431824,-270.0,0.00016899,2]
[365510714,1749725431833,-500.0,0.00016899,2]
[365510715,1749725431842,-500.0,0.00016899,2]
[365510716,1749725431851,-500.0,0.00016899,2]
[365510717,1749725431860,-500.0,0.00016899,2]
[365510718,1749725431870,-500.0,0.00016899,2]
[365510719,1749725431879,-445.84682161,0.00016899,2]
[365510720,1749725431997,-54.15317839,0.00016899,2]
[365510721,1749725432006,-500.0,0.00016899,2]
[365510722,1749725432015,-500.0,0.00016899,2]
[365510723,1749725432025,-614.34958729,0.00016899,2]
[365510724,1749725432034,-649.88348374,0.00016899,2]
[365510725,1749725432043,-500.0,0.00016899,2]
[365510726,1749725432052,-500.0,0.00016899,2]
[365510728,1749725432062,-500.0,0.00016899,2]
[365510729,1749725432071,-500.0,0.00016899,2]
[365510730,1749725432080,-500.0,0.00016899,2]
[365510731,1749725432090,-500.0,0.00016899,2]
[365510732,1749725432100,-627.3691167,0.00016899,2]
[365510733,1749725432109,-500.0,0.00016899,2]
[365510735,1749725432118,-500.0,0.00016899,2]
[365510737,1749725432128,-500.0,0.00016899,2]
[365510739,1749725432140,-500.0,0.00016899,2]
[365510740,1749725432150,-500.0,0.00016899,2]
[365510741,1749725432159,-500.0,0.00016899,2]
[365510742,1749725432169,-500.0,0.00016899,2]
[365510743,1749725432178,-500.0,0.00016899,2]
[365510744,1749725432188,-500.0,0.00016899,2]
[365510745,1749725432197,-500.0,0.00016899,2]
[365510746,1749725432207,-500.0,0.00016899,2]
[365510747,1749725432216,-500.0,0.00016899,2]
[365510748,1749725432226,-500.0,0.00016899,2]
[365510749,1749725432236,-500.0,0.00016899,2]
[365510750,1749725432246,-500.0,0.00016899,2]
[365510751,1749725432255,-500.0,0.00016899,2]
[365510752,1749725432265,-500.0,0.00016899,2]
[365510753,1749725432274,-500.0,0.00016899,2]
[365510754,1749725432284,-500.0,0.00016899,2]
[365510755,1749725432294,-500.0,0.00016899,2]
[365510756,1749725432307,-500.0,0.00016899,2]
[365510757,1749725432316,-500.0,0.00016899,2]
[365510758,1749725432326,-500.0,0.00016899,2]
[365510759,1749725432335,-500.0,0.00016899,2]
[365510760,1749725432345,-500.0,0.00016899,2]
[365510761,1749725432355,-500.0,0.00016899,2]
[365510762,1749725432364,-289.96560436,0.00016899,2]
[365510763,1749725432373,-500.0,0.00016899,2]
[365510764,1749725432386,-500.0,0.00016899,2]
[365510765,1749725432395,-500.0,0.00016899,2]
[365510766,1749725432404,-500.0,0.00016899,2]
[365510767,1749725432414,-500.0,0.00016899,2]
[365510768,1749725432424,-500.0,0.00016899,2]
[365510769,1749725432433,-500.0,0.00016899,2]
[365510770,1749725432443,-500.0,0.00016899,2]
[365510771,1749725432452,-500.0,0.00016899,2]
[365510772,1749725432462,-179.5608978,0.000169,2]
[365510773,1749725432471,-40750.06593141,0.000169,2]
[365510774,1749725432481,-824.94723423,0.000169,2]
[365510775,1749725432490,-1326.49283577,0.000169,2]
[365510776,1749725432499,-25862.69603967,0.000169,2]
[365510777,1749725432509,-91063.48741136,0.000169,2]
[365510778,1749725432521,-17936.51258864,0.000169,2]
[365510779,1749725432531,-175.37541751,0.000169,2]
[365510780,1749725432541,-417.13184361,0.000169,2]
[365510781,1749725432550,-219.48302286,0.000169,2]
[365510782,1749725432560,-1154.11382838,0.000169,2]
[365510783,1749725432569,-4049.3934394,0.000169,2]
[365510784,1749725432579,-250.0,0.00016937,2]
[365510785,1749725432588,-501.46367489,0.00016973,2]
[365510786,1749725432599,-500.85649628,0.00016973,2]
[365510787,1749725432608,-469.85630973,0.00016973,2]
[365510788,1749725432618,-505.25259232,0.00016973,2]
[365510789,1749725432627,-500.0,0.00016973,2]
[365510790,1749725432637,-500.0,0.00016973,2]
[365510791,1749725432647,-162.00954932,0.00016973,2]
[365510792,1749725432656,-500.0,0.00016973,2]
[365510793,1749725432666,-502.96923239,0.00016973,2]
[365510794,1749725432676,-500.0,0.00016973,2]
[365510795,1749725432686,-205.14843759,0.00016973,2]
[365510796,1749725432696,-500.0,0.00016973,2]
[365510797,1749725432705,-500.0,0.00016973,2]
[365510798,1749725432715,-502.04383629,0.00016973,2]
[365510799,1749725432725,-500.91731703,0.00016973,2]
[365510800,1749725432734,-500.0,0.00016973,2]
[365510801,1749725432743,-500.0,0.00016973,2]
[365510802,1749725432752,-500.0,0.00016973,2]
[365510803,1749725432762,-161.28620829,0.00016974,2]
[365510804,1749725432771,-154.61946531,0.0001699,2]
[365510805,1749725432781,-152.83,0.0001699,2]
[365510806,1749725432790,-152.83,0.0001699,2]
[365510807,1749725432799,-152.83,0.0001699,2]
[365510808,1749725432809,-152.83,0.0001699,2]
[365510809,1749725432818,-152.83,0.0001699,2]
[365510810,1749725432827,-152.83,0.0001699,2]
[365510811,1749725432837,-152.83,0.0001699,2]
[365510812,1749725432846,-152.83,0.0001699,2]
[365510813,1749725432855,-152.83,0.0001699,2]
[365510814,1749725432865,-152.83,0.0001699,2]
[365510815,1749725432875,-152.83,0.0001699,2]
[365510816,1749725432886,-300.0,0.00016999,2]
[365510817,1749725432895,-666.0,0.00016999,2]
[365510818,1749725432905,-300.0,0.00016999,2]
[365510819,1749725432915,-666.0,0.00016999,2]
[365510820,1749725432924,-673.06473908,0.00016999,2]
[365510821,1749725432933,-1000.0,0.00016999,2]
[365510822,1749725432943,-300.0,0.00016999,2]
[365510823,1749725432952,-300.0,0.00016999,2]
[365510824,1749725432962,-322.97258178,0.00016999,2]
[365510825,1749725432971,-178.90436258,0.00016999,2]
[365510826,1749725432980,-452.20670899,0.00016999,2]
[365510827,1749725432989,-246.0910708,0.00016999,2]
[365510828,1749725432998,-919.6603941,0.00017,3]
[365510829,1749725433009,-15851.21940639,0.00017,3]
[365510830,1749725438026,-115694.24407603,0.00017,3]
[365510831,1749725438084,-904.81194693,0.00017,3]
[365510832,1749725438096,-393.2253097,0.00017,3]
[365510833,1749725438107,-8387.92434993,0.00017,3]
[365510837,1749725439796,-22529.24474669,0.00017,3]
[365510838,1749725439947,-262055.97266252,0.00017,3]
[365510839,1749725439957,-2479851.7513221,0.00017,2]
[365510841,1749725440824,-104.66463902,0.00017,2]
[365510846,1749725442824,-3318.56335551,0.00017,2]
[365510849,1749725445617,-354.18750212,0.00017,2]
[365510852,1749725446618,-561.71087615,0.00017,2]
[365510853,1749725446675,-7725.95919997,0.00017,2]
[365510854,1749725499695,292.4,0.00013699,2]
[365510856,1749725530168,2500.0,0.0002,30]
[365510857,1749725541100,2500.0,0.0002,60]
[365510858,1749725555026,2500.0,0.00024658,120]
[365510859,1749725566457,2500.0,0.00016,2]
[365510860,1749725583258,856.47,0.00015507,2]
[365510861,1749725606891,590.3,0.00024658,120]
[365510863,1749725653530,-159.85310669,0.00016136,2]
[365510864,1749725975443,150.0,0.00016082,7]
[365510865,1749725976246,-152.0,0.00016109,2]
[365510866,1749725982278,-171.94691659,0.00016109,2]
[365510867,1749725984992,-407.92041949,0.00016109,2]
[365510868,1749725992541,-161.85310669,0.00016109,2]
[365510869,1749725997103,-106.27955723,0.00016109,2]
[365510870,1749725997125,-200.0,0.0001624,2]
[365510871,1749725997149,-113.85310669,0.0001628,2]
[365510872,1749726001094,-43.97689331,0.0001628,2]
[365510873,1749726001119,-117.87621338,0.00016326,2]
[365510874,1749726003631,-207.27166592,0.00016325,2]
[365510875,1749726013458,201.0,0.00015136,2]
[365510876,1749726013717,201.0,0.00015664,2]
[365510877,1749726041488,250.51425,0.00015136,2]
[365510878,1749726050979,-234.31076084,0.0001609,2]
[365510879,1749726059682,1087.25500391,0.00016999,5]
[365510880,1749726059712,1087.25500391,0.00016999,5]
[365510881,1749726059756,1087.25500391,0.00016999,5]
[365510882,1749726059798,1087.25500391,0.00016999,5]
[365510883,1749726059873,1087.25500391,0.00016999,5]
[365510884,1749726059902,1087.25500389,0.00016999,5]
[365510885,1749726063800,-207.27166592,0.0001609,2]
[365510886,1749726077596,-48.84757324,0.0001609,2]
[365510887,1749726077618,-197.37990027,0.000161,2]
[365510888,1749726079274,-235.63785094,0.000161,2]
[365510889,1749726080781,-157.83,0.000161,2]
[365510890,1749726092899,-200.0,0.000161,2]
[365510893,1749726174553,-159.85310669,0.00016011,2]
[365510895,1749726183339,-90.14689331,0.00016011,2]
[365510896,1749726191568,159.8531,0.00015136,2]
[365510898,1749726219502,500.0,0.00015995,2]
[365510900,1749726310580,1055.8500714,0.00015994,2]
[365510901,1749726310605,395.5745936,0.00015994,2]
[365510903,1749726372126,201.0,0.00015192,2]
[365510904,1749726372255,201.0,0.00015732,2]
[365510905,1749726375220,150.0,0.0002465,120]
[365510906,1749726394117,-150.0,0.00016075,2]
[365510907,1749726394139,-283.50431257,0.00016081,4]
[365510908,1749726438079,-316.49568743,0.00016081,4]
[365510909,1749726438100,-600.0,0.00016087,4]
[365510910,1749726438122,-507.36254725,0.000161,2]
[365510911,1749726452557,175.0,0.0002465,120]
[365510912,1749726468446,150.0,0.0002465,120]
[365510913,1749726497558,-206.15343911,0.00016069,2]
[365510914,1749726501134,-267.14722431,0.00016069,2]
[365510915,1749726541907,-181.88352571,0.00016069,2]
[365510916,1749726546104,-2730.39058116,0.00016069,2]
[365510917,1749726552168,-9139.83522971,0.00016069,2]
[365510918,1749726552188,-150.0,0.000161,2]
[365510919,1749726552211,-4592.97970154,0.000161,2]
[365510920,1749726552234,-600.0,0.00016107,4]
[365510921,1749726553187,150.0,0.0002465,120]
[365510922,1749726553334,200.0,0.00016034,2]
[365510925,1749726568263,200.0,0.0002465,120]
[365510926,1749726577739,813.64,0.00014182,2]
[365510931,1749726631886,-300.0,0.00016113,2]
[365510932,1749726631896,-1200.0,0.00016113,2]
[365510933,1749726631907,-300.0,0.00016114,2]
[365510934,1749726631918,-606.845,0.00016114,2]
[365510935,1749726631928,-20871.29399409,0.00016115,2]
[365510936,1749726632032,-769.089619,0.00016115,2]
[365510937,1749726632087,-2259.61638691,0.00016115,2]
[365510938,1749726632096,-201.0,0.00016271,3]
[365510939,1749726632107,-2903.88361309,0.00016326,2]
[365510946,1749726637783,-500.0,0.00016325,2]
[365510947,1749726637794,-500.0,0.00016325,2]
[365510948,1749726637804,-569.70767963,0.00016325,2]
[365510949,1749726637814,-500.0,0.00016325,2]
[365510950,1749726637824,-183.32038708,0.00016325,2]
[365510951,1749726637835,-428.99656044,0.00016325,2]
[365510952,1749726637845,-280.44112613,0.00016326,2]
[365510953,1749726637906,-3439.0,0.00016326,2]
[365510954,1749726637918,-1152.8964164,0.00016326,2]
[365510955,1749726637997,-7270.752631,0.00016326,2]
[365510956,1749726638007,-946.6,0.00016368,2]
[365510957,1749726638017,-813.64,0.00016446,2]
[365510958,1749726638027,-846.92237685,0.00016805,2]
[365510959,1749726638036,-201.0,0.00016811,4]
[365510960,1749726638305,-357.47001206,0.000169,2]
[365510961,1749726638339,-85.65880847,0.000169,2]
[365510962,1749726638351,-1518.54119153,0.000169,2]
[365510963,1749726638361,-583.95900516,0.000169,2]
[365510964,1749726638371,-957.78780331,0.000169,2]
[365510965,1749726638384,-823.1534507,0.000169,2]
[365510966,1749726638394,-164.41315124,0.000169,2]
[365510967,1749726638403,-500.0,0.00016973,2]
[365510968,1749726638413,-500.0,0.00016973,2]
[365510969,1749726638423,-500.0,0.00016973,2]
[365510970,1749726638432,-500.0,0.00016973,2]
[365510971,1749726638442,-500.0,0.00016973,2]
[365510972,1749726638454,-500.0,0.00016973,2]
[365510973,1749726638463,-500.0,0.00016973,2]
[365510974,1749726638473,-175.11,0.00016977,2]
[365510975,1749726638482,-175.11,0.00016998,2]
[365510976,1749726638492,-300.0,0.00016999,2]
[365510977,1749726638502,-222.07,0.00016999,2]
[365510978,1749726638512,-300.0,0.00016999,2]
[365510979,1749726638522,-459.83019705,0.00017,3]
[365510980,1749726638531,-971.62242464,0.00017,3]
[365510981,1749726638543,-567.78837436,0.00017,3]
[365510982,1749726639108,277.78,0.00013699,2]
[365510984,1749726640081,-342396.89678135,0.00017,3]
[365510985,1749726640091,-2565215.37258917,0.00017,2]
[365510986,1749726640389,-72.252881,0.00017,2]
[365511007,1749726643156,-6288.78853201,0.00017,2]
[365511008,1749726643176,-3813.32307979,0.00017,2]
[365511009,1749726643188,-889.56594259,0.00017,2]
[365511010,1749726643230,-1312.32,0.00017,2]
[365511011,1749726643242,-491.95238989,0.00017,2]
[365511013,1749726643355,-48.16714586,0.00017,2]
[365511015,1749726643407,-2237.96139,0.00017,2]